bitfinex-derivatives/quotes_SOLF0:USTF0_20250606
["timestamp","ask_amount","ask_price","bid_price","bid_amount"]
[1749168002876,0.04601003,144.28,144.25,0.04578181]
[1749168003777,0.04601003,144.28,144.26,6.928]
[1749168005577,0.04601003,144.28,144.27,6.928]
[1749168007176,0.04601003,144.28,144.25,0.04578181]
[1749168007974,0.04601003,144.28,144.25,6.97448181]
[1749168008379,0.04601003,144.28,144.26,6.9283]
[1749168008679,0.04601003,144.28,144.25,0.04578181]
[1749168009077,0.04601003,144.28,144.27,6.928]
[1749168009272,0.04601003,144.28,144.25,0.04578181]
[1749168010172,0.04601003,144.28,144.27,6.928]
[1749168010981,0.04601003,144.28,144.26,6.9284]
[1749168011180,0.04601003,144.28,144.25,0.04578181]
[1749168012275,0.04601003,144.28,144.26,6.9285]
[1749168013077,0.04601003,144.28,144.27,6.928]
[1749168013277,0.04601003,144.28,144.25,0.04578181]
[1749168013782,6.97381003,144.28,144.25,0.04578181]
[1749168014184,6.97381003,144.28,144.25,6.97468181]
[1749168014377,0.04601003,144.28,144.25,0.04578181]
[1749168014780,0.04601003,144.28,144.26,6.9285]
[1749168015582,0.04601003,144.28,144.25,0.04578181]
[1749168016385,0.04601003,144.28,144.26,6.9285]
[1749168017582,0.04601003,144.28,144.27,6.928]
[1749168019786,0.04601003,144.28,144.25,0.04578181]
[1749168020291,0.04601003,144.28,144.26,6.9285]
[1749168021295,0.04601003,144.28,144.27,6.928]
[1749168021689,35.52,144.34,144.25,0.04578181]
[1749168021889,6.1412199,144.33,144.23,37.8383]
[1749168022191,6.9264,144.31,144.23,37.8383]
[1749168022390,6.9264,144.31,144.27,6.9277]
[1749168022592,6.9276,144.28,144.22,2.1741]
[1749168022793,0.04422787,144.26,144.24,0.04930681]
[1749168025595,0.04422787,144.26,144.24,6.97870681]
[1749168025794,0.04422787,144.26,144.24,0.04930681]
[1749168027399,0.04422787,144.26,144.24,6.97860681]
[1749168028697,0.04422787,144.26,144.24,0.04930681]
[1749168029793,0.04422787,144.26,144.24,6.97860681]
[1749168030399,0.04422787,144.26,144.25,6.929]
[1749168031603,0.04422787,144.26,144.24,6.97860681]
[1749168032502,0.04422787,144.26,144.25,6.929]
[1749168033002,0.04422787,144.26,144.24,0.04930681]
[1749168033302,0.04422787,144.26,144.24,6.97860681]
[1749168034211,0.04422787,144.26,144.24,0.04930681]
[1749168034901,6.24439254,144.31,144.24,0.04930681]
[1749168035101,43.50773472,144.36,144.23,4.4334]
[1749168035412,10.79894625,144.35,144.23,4.4334]
[1749168035706,6.24502699,144.34,144.23,4.4334]
[1749168036006,0.05198052,144.3,144.27,0.04938514]
[1749168036215,54.83703472,144.36,144.31,6.9259]
[1749168036502,6.29519516,144.35,144.32,0.04788924]
[1749168036701,6.24714219,144.34,144.32,0.04788924]
[1749168036903,6.24714219,144.33,144.32,0.04788924]
[1749168038509,6.97245297,144.35,144.32,0.04788924]
[1749168038708,6.25277059,144.34,144.32,0.04788924]
[1749168038906,6.9248,144.34,144.32,0.04788924]
[1749168041000,6.97225297,144.35,144.32,0.04788924]
[1749168041203,6.24466623,144.34,144.32,0.04788924]
[1749168041400,0.04805297,144.35,144.32,0.04788924]
[1749168041712,13.17087528,144.34,144.32,0.04788924]
[1749168041906,6.9248,144.34,144.32,0.04788924]
[1749168042111,0.04805297,144.35,144.32,0.04788924]
[1749168042315,6.24594436,144.34,144.32,0.04788924]
[1749168042506,0.04805297,144.35,144.32,0.04788924]
[1749168043612,0.04805297,144.35,144.32,6.97338924]
[1749168044413,0.04805297,144.35,144.32,0.04788924]
[1749168045213,0.04805297,144.35,144.34,6.9246]
[1749168046113,0.04805297,144.35,144.32,37.12788924]
[1749168046612,0.04805297,144.35,144.33,6.9248]
[1749168047414,0.04805297,144.35,144.34,6.9246]
[1749168047615,0.04805297,144.35,144.32,37.12788924]
[1749168047807,0.04805297,144.35,144.32,0.04788924]
[1749168048009,6.925,144.34,144.32,0.04788924]
[1749168049517,44.05235297,144.35,144.32,0.04788924]
[1749168049717,37.12805297,144.35,144.32,0.04788924]
[1749168050123,37.12805297,144.35,144.32,6.97318924]
[1749168050416,37.12805297,144.35,144.32,0.04788924]
[1749168051518,44.05255297,144.35,144.32,0.04788924]
[1749168051816,37.12805297,144.35,144.32,0.04788924]
[1749168052818,44.05225297,144.35,144.32,0.04788924]
[1749168053009,37.12805297,144.35,144.32,0.04788924]
[1749168053719,44.05235297,144.35,144.32,0.04788924]
[1749168054123,37.12805297,144.35,144.32,0.04788924]
[1749168054720,37.12805297,144.35,144.32,6.97308924]
[1749168054921,44.05225297,144.35,144.32,6.97308924]
[1749168055215,0.04805297,144.35,144.33,6.9248]
[1749168055419,0.04805297,144.35,144.32,0.04788924]
[1749168056216,0.04805297,144.35,144.33,6.9248]
[1749168056617,0.04805297,144.35,144.32,0.04788924]
[1749168057223,0.04805297,144.35,144.34,6.9246]
[1749168058023,0.04805297,144.35,144.33,6.9249]
[1749168058620,0.04805297,144.35,144.34,6.9246]
[1749168060725,37.06,144.48,144.34,6.92]
[1749168061019,37.06,144.48,144.33,37.06]
[1749168061020,6.9192,144.46,144.35,2.1095]
[1749168061214,6.9192,144.46,144.42,6.9205]
[1749168061524,37.06,144.48,144.39,37.06]
[1749168061525,6.9196,144.45,144.39,37.06]
[1749168061728,0.05099125,144.42,144.4,6.9218]
[1749168062023,0.04375711,144.42,144.4,0.04756602]
[1749168062223,0.04375711,144.42,144.41,6.9213]
[1749168062628,4.3668,144.5,144.4,0.04756602]
[1749168062926,4.3668,144.5,144.4,2.257]
[1749168063524,0.04603423,144.46,144.44,0.04619013]
[1749168065024,6.9194,144.45,144.44,0.04619013]
[1749168065427,0.04603423,144.46,144.44,0.04619013]
[1749168065630,6.96523423,144.46,144.44,0.04619013]
[1749168066827,6.9194,144.45,144.44,0.04619013]
[1749168067825,0.04603423,144.46,144.38,37.92]
[1749168068025,2.1221,144.44,144.35,398.86]
[1749168068221,40.1422,144.43,144.33,37.92]
[1749168068827,0.04996926,144.39,144.37,0.04798935]
[1749168070727,6.97236926,144.39,144.37,0.04798935]
[1749168071725,37.92,144.38,144.27,37.92]
[1749168072134,6.9224,144.39,144.27,37.92]
[1749168072337,37.92,144.41,144.27,37.92]
[1749168072534,37.92,144.41,144.36,6.9236]
[1749168072735,0.05292391,144.4,144.37,37.96534595]
[1749168072927,0.04548849,144.4,144.38,37.92]
[1749168073128,37.92,144.48,144.42,6.9208]
[1749168073327,37.92,144.48,144.38,44.587]
[1749168073731,6.9193,144.46,144.42,6.9204]
[1749168074229,0.0517589,144.45,144.43,0.05339699]
[1749168074431,0.0517589,144.45,144.43,6.97359699]
[1749168074934,0.0517589,144.45,144.43,0.05339699]
[1749168075536,0.0517589,144.45,144.44,6.9198]
[1749168075935,37.92,144.51,144.43,0.05339699]
[1749168076136,37.92,144.51,144.42,37.92]
[1749168076733,37.92,144.51,144.47,6.918]
[1749168076930,0.04569264,144.5,144.48,0.0524377]
[1749168079632,0.04569264,144.5,144.48,6.9699377]
[1749168080541,43.04,144.49,144.38,2.1786]
[1749168080744,8.39046978,144.48,144.38,2.1786]
[1749168080941,2.2477,144.48,144.4,6.9216]
[1749168081141,8.42410925,144.48,144.38,2.1786]
[1749168081343,8.42421853,144.48,144.38,2.1786]
[1749168081641,0.05190916,144.44,144.42,0.04897394]
[1749168082642,0.05190916,144.44,144.42,6.96967394]
[1749168082838,0.05190916,144.44,144.42,0.04897394]
[1749168084550,6.9203,144.43,144.42,0.04897394]
[1749168086251,0.05190916,144.44,144.35,47.5144]
[1749168086552,43.02,144.45,144.35,47.5144]
[1749168086851,6.21235496,144.44,144.35,47.5144]
[1749168087041,0.05280388,144.41,144.35,47.5144]
[1749168087247,0.05280388,144.41,144.38,0.05111817]
[1749168088051,43.09280388,144.41,144.38,0.05111817]
[1749168088248,6.9222,144.39,144.38,0.05111817]
[1749168090349,43.09280388,144.41,144.38,0.05111817]
[1749168091956,6.9222,144.39,144.38,0.05111817]
[1749168094861,6.9222,144.39,144.38,1.817e-05]
[1749168096058,6.9222,144.39,144.35,6.9237]
[1749168096257,6.9228,144.38,144.32,43.40762651]
[1749168096558,4.5064,144.4,144.32,43.40762651]
[1749168096861,4.5064,144.4,144.35,6.9241]
[1749168097062,0.04767129,144.39,144.36,0.04452128]
[1749168097363,6.97027129,144.39,144.36,0.04452128]
[1749168098464,6.9228,144.38,144.36,0.04452128]
[1749168099061,0.04767129,144.39,144.36,0.04452128]
[1749168099262,0.04767129,144.39,144.28,43.04]
[1749168099568,6.20920486,144.38,144.28,43.04]
[1749168099763,6.20920486,144.39,144.28,43.04]
[1749168099958,6.20920486,144.39,144.36,6.9236]
[1749168100160,43.04,144.42,144.32,43.04]
[1749168100365,0.04762887,144.38,144.36,0.04185243]
[1749168100562,0.0500355,144.38,144.37,6.9232]
[1749168100963,0.0500355,144.38,144.36,0.04185243]
[1749168101163,0.0500355,144.38,144.36,6.96545243]
[1749168101964,0.0500355,144.38,144.36,0.04185243]
[1749168102262,44.8900355,144.38,144.27,44.84]
[1749168102463,44.84,144.38,144.33,6.9247]
[1749168102669,44.84,144.38,144.27,44.84]
[1749168103066,44.84,144.38,144.33,6.9249]
[1749168103572,0.04942823,144.37,144.33,6.9249]
[1749168104369,0.04942823,144.37,144.34,6.9245]
[1749168104873,0.04942823,144.37,144.27,44.84]
[1749168105067,0.05298785,144.33,144.27,44.84]
[1749168106174,0.05298785,144.33,144.32,6.9256]
[1749168107075,8.785e-05,144.33,144.32,6.9256]
[1749168108975,8.785e-05,144.33,144.32,9.2095]
[1749168109278,8.785e-05,144.33,144.32,13.7704]
[1749168110872,8.785e-05,144.33,144.32,20.6904]
[1749168111574,8.785e-05,144.33,144.32,13.7704]
[1749168121978,8.785e-05,144.33,144.32,20.6904]
[1749168124172,8.785e-05,144.33,144.32,13.7704]
[1749168129186,8.785e-05,144.33,144.32,6.9256]
[1749168129781,8.785e-05,144.33,144.31,0.05193953]
[1749168131586,8.785e-05,144.33,144.31,6.97793953]
[1749168131789,8.785e-05,144.33,144.31,0.05193953]
[1749168133283,8.785e-05,144.33,144.31,6.97793953]
[1749168133481,8.785e-05,144.33,144.31,0.05193953]
[1749168134889,8.785e-05,144.33,144.31,6.97793953]
[1749168137588,8.785e-05,144.33,144.32,6.9256]
[1749168138189,8.785e-05,144.33,144.32,11.5735]
[1749168139494,8.785e-05,144.33,144.32,18.4935]
[1749168141088,6.5284,144.46,144.43,6.9199]
[1749168141288,6.5284,144.46,144.39,48.48]
[1749168141492,6.5284,144.46,144.4,48.48]
[1749168141888,6.5284,144.46,144.45,6.9194]
[1749168142090,6.5284,144.46,144.44,0.04687563]
[1749168142293,0.05195141,144.47,144.44,0.04687563]
[1749168142785,0.05195141,144.47,144.45,6.9194]
[1749168143401,45.44955141,144.49,144.45,6.9194]
[1749168143783,38.53195141,144.49,144.44,6.96657563]
[1749168143994,38.53195141,144.49,144.44,0.04687563]
[1749168144396,0.04877754,144.48,144.44,0.04687563]
[1749168144595,6.96687754,144.48,144.44,0.04687563]
[1749168144796,0.04877754,144.48,144.44,0.04687563]
[1749168145092,0.04877754,144.48,144.44,47.24687563]
[1749168146393,0.04877754,144.48,144.44,0.04687563]
[1749168146596,0.04877754,144.48,144.4,47.2]
[1749168147096,6.9197,144.45,144.4,54.1216]
[1749168147297,4.5155,144.44,144.4,54.1216]
[1749168147495,0.04850455,144.43,144.41,0.04440727]
[1749168148397,0.04850455,144.43,144.36,445.96]
[1749168148597,6.96900455,144.43,144.36,445.96]
[1749168148796,6.96900455,144.43,144.38,6.9224]
[1749168149199,6.9209,144.42,144.38,6.9224]
[1749168149595,6.9209,144.42,144.37,6.923]
[1749168149794,6.97363476,144.41,144.37,6.923]
[1749168149988,0.05233476,144.41,144.37,6.923]
[1749168151499,6.97373476,144.41,144.36,47.18]
[1749168151800,2.27523476,144.41,144.36,47.18]
[1749168152897,6.9219,144.4,144.36,54.1033]
[1749168153499,6.9219,144.4,144.36,6.9233]
[1749168153701,6.9222,144.39,144.35,6.924]
[1749168153899,2.2878937,144.38,144.35,6.924]
[1749168154097,2.2878937,144.38,144.32,47.2]
[1749168154303,2.2799,144.37,144.29,398.68]
[1749168154609,0.04729606,144.34,144.28,81.97594766]
[1749168154911,6.97199606,144.34,144.28,81.97594766]
[1749168155102,0.04729606,144.34,144.28,81.97594766]
[1749168155906,0.04729606,144.34,144.3,6.9263]
[1749168156114,2.19589606,144.34,144.3,6.9263]
[1749168156405,6.9254,144.33,144.28,6.9271]
[1749168156798,2.19589606,144.34,144.27,47.2]
[1749168157008,0.04997008,144.32,144.27,47.2]
[1749168158003,0.04997008,144.32,144.3,6.9262]
[1749168158209,0.04997008,144.32,144.27,47.2]
[1749168158608,0.04997008,144.32,144.29,6.9267]
[1749168162812,6.97557008,144.32,144.28,6.9274]
[1749168163413,0.04997008,144.32,144.27,47.2]
[1749168163921,0.04997008,144.32,144.3,6.9262]
[1749168164420,0.04997008,144.32,144.27,47.2]
[1749168164723,0.04997008,144.32,144.31,6.9261]
[1749168165313,7.008e-05,144.32,144.31,6.9261]
[1749168165723,7.008e-05,144.32,144.31,54.1461]
[1749168170712,7.008e-05,144.32,144.3,6.97460985]
[1749168170911,7.008e-05,144.32,144.3,0.04820985]
[1749168174324,7.008e-05,144.32,144.3,6.97470985]
[1749168178429,7.008e-05,144.32,144.3,0.04820985]
[1749168180225,6.92577008,144.32,144.3,0.04820985]
[1749168180427,7.008e-05,144.32,144.3,0.04820985]
[1749168180827,6.9261,144.31,144.3,0.04820985]
[1749168181727,6.927,144.3,144.23,7.91351375]
[1749168181927,6.927,144.3,144.26,6.9282]
[1749168182232,47.94,144.32,144.23,2.3177]
[1749168182423,47.94,144.32,144.22,446.64]
[1749168182424,6.9278,144.28,144.24,6.9293]
[1749168182828,0.04434153,144.27,144.24,6.9293]
[1749168183227,0.04434153,144.27,144.22,47.94]
[1749168183825,0.04434153,144.27,144.26,6.9285]
[1749168187533,4.153e-05,144.27,144.26,6.9285]
[1749168189929,4.153e-05,144.27,144.26,57.0766]
[1749168190129,4.153e-05,144.27,144.26,61.6628]
[1749168195233,4.153e-05,144.27,144.26,57.0766]
[1749168195734,4.153e-05,144.27,144.26,59.323]
[1749168197023,4.153e-05,144.27,144.26,61.5421]
[1749168200133,4.153e-05,144.27,144.26,57.0766]
[1749168201225,4.153e-05,144.27,144.26,54.8685]
[1749168202729,4.153e-05,144.27,144.26,6.9285]
[1749168204635,4.153e-05,144.27,144.25,6.97768686]
[1749168205437,4.153e-05,144.27,144.26,6.9285]
[1749168206030,4.153e-05,144.27,144.25,6.97768686]
[1749168206841,4.153e-05,144.27,144.25,0.04888686]
[1749168207041,4.153e-05,144.27,144.19,46.7]
[1749168207236,46.7,144.28,144.19,46.7]
[1749168208039,46.7,144.28,144.25,6.9286]
[1749168208241,46.7506674,144.28,144.25,6.9286]
[1749168208841,0.0506674,144.28,144.25,6.9286]
[1749168209138,6.9285,144.26,144.17,4.4484]
[1749168209336,0.05263251,144.23,144.17,4.4484]
[1749168210040,0.05263251,144.23,144.17,51.1684]
[1749168210243,0.05263251,144.23,144.22,6.9304]
[1749168211041,0.05263251,144.23,144.17,46.72]
[1749168211735,0.05263251,144.23,144.21,6.9309]
[1749168211934,0.05263251,144.23,144.17,46.72]
[1749168212339,0.05263251,144.23,144.19,6.9315]
[1749168212340,2.29313251,144.23,144.19,6.9315]
[1749168212536,9.22313251,144.23,144.19,6.9315]
[1749168212741,9.22313251,144.23,144.17,46.72]
[1749168213036,2.29313251,144.23,144.17,46.72]
[1749168213539,0.05263251,144.23,144.22,6.9304]
[1749168217145,0.05263251,144.23,144.21,6.9307]
[1749168217550,0.05263251,144.23,144.18,4.4045]
[1749168218746,0.05263251,144.23,144.22,6.9304]
[1749168219855,3.251e-05,144.23,144.22,6.9304]
[1749168220461,6.6157,144.35,144.21,46.72]
[1749168220649,6.20379024,144.34,144.21,445.86]
[1749168220952,6.6157,144.35,144.21,445.86]
[1749168221545,9.388e-05,144.29,144.27,0.0437285]
[1749168221847,4.4867,144.35,144.27,46.72]
[1749168222051,4.4867,144.35,144.32,6.9253]
[1749168222759,4.53411712,144.35,144.32,6.97170847]
[1749168223058,4.53411712,144.35,144.32,6.97200847]
[1749168223751,4.53411712,144.35,144.32,0.04640847]
[1749168223752,11.45831712,144.35,144.32,0.04640847]
[1749168226658,6.9247,144.34,144.32,0.04640847]
[1749168226863,4.53411712,144.35,144.32,0.04640847]
[1749168227461,4.53411712,144.35,144.32,6.97150847]
[1749168228159,11.45831712,144.35,144.32,0.04640847]
[1749168229153,4.53411712,144.35,144.32,0.04640847]
[1749168229359,4.53411712,144.35,144.23,46.72]
[1749168229554,4.4867,144.35,144.23,46.72]
[1749168229863,6.925,144.34,144.29,6.9268]
[1749168230159,4.4867,144.35,144.24,4.4161]
[1749168230364,0.04640437,144.3,144.28,0.04780286]
[1749168230864,0.04640437,144.3,144.29,6.927]
[1749168232863,0.04640437,144.3,144.28,6.97520286]
[1749168233563,0.04640437,144.3,144.28,0.04780286]
[1749168234767,6.97330437,144.3,144.28,0.04780286]
[1749168235166,0.04640437,144.3,144.28,0.04780286]
[1749168238167,6.97300437,144.3,144.28,0.04780286]
[1749168238568,0.04640437,144.3,144.28,0.04780286]
[1749168239673,0.04640437,144.3,144.29,6.927]
[1749168240774,0.04640437,144.3,144.28,0.04780286]
[1749168241275,0.04640437,144.3,144.28,6.97480286]
[1749168242269,0.04640437,144.3,144.29,6.927]
[1749168243176,0.04640437,144.3,144.28,6.97510286]
[1749168243385,0.04640437,144.3,144.28,0.04780286]
[1749168243881,6.97310437,144.3,144.28,0.04780286]
[1749168244178,0.04640437,144.3,144.28,0.04780286]
[1749168245579,0.04640437,144.3,144.29,6.927]
[1749168246180,4.37e-06,144.3,144.29,6.927]
[1749168247879,4.37e-06,144.3,144.28,6.97510286]
[1749168248084,4.37e-06,144.3,144.28,0.04780286]
[1749168248983,4.37e-06,144.3,144.29,6.927]
[1749168249781,4.37e-06,144.3,144.29,18.1522]
[1749168250176,4.37e-06,144.3,144.29,11.2122]
[1749168253387,4.37e-06,144.3,144.29,58.3122]
[1749168254684,4.37e-06,144.3,144.29,65.2522]
[1749168259594,4.37e-06,144.3,144.29,58.3122]
[1749168261193,4.37e-06,144.3,144.29,11.2122]
[1749168261395,4.37e-06,144.3,144.29,58.3122]
[1749168266791,4.37e-06,144.3,144.29,65.2522]
[1749168268498,4.37e-06,144.3,144.29,58.3122]
[1749168269093,4.37e-06,144.3,144.29,65.2522]
[1749168269496,4.5033,144.42,144.41,6.9212]
[1749168270590,0.0460318,144.43,144.42,6.9205]
[1749168272201,0.0460318,144.43,144.4,0.05175314]
[1749168272499,6.9209,144.42,144.37,47.3]
[1749168272694,4.6027,144.41,144.37,54.2231]
[1749168272900,11.5241,144.41,144.37,54.2231]
[1749168273102,11.5241,144.41,144.37,6.9231]
[1749168273503,11.5241,144.41,144.38,0.05279949]
[1749168273801,51.8827,144.41,144.33,47.28]
[1749168274603,0.04683163,144.38,144.33,47.28]
[1749168275101,0.04683163,144.38,144.36,6.9233]
[1749168275903,0.04683163,144.38,144.35,6.924]
[1749168276100,0.04683163,144.38,144.33,47.28]
[1749168276997,6.96993163,144.38,144.34,6.9242]
[1749168278300,6.96993163,144.38,144.35,6.924]
[1749168278301,0.04683163,144.38,144.35,6.924]
[1749168278500,0.05317882,144.38,144.35,6.924]
[1749168278702,0.05317882,144.38,144.29,49.4268]
[1749168278905,2.2989,144.4,144.29,49.4268]
[1749168279102,0.04959142,144.36,144.29,49.4268]
[1749168279301,0.04959142,144.36,144.35,6.9241]
[1749168279806,0.04959142,144.36,144.34,6.9244]
[1749168280805,0.04959142,144.36,144.29,49.4268]
[1749168281503,0.04959142,144.36,144.34,6.9243]
[1749168282207,0.04959142,144.36,144.35,6.9241]
[1749168282808,0.04959142,144.36,144.34,6.9244]
[1749168283608,0.04959142,144.36,144.35,6.9241]
[1749168284211,0.04959142,144.36,144.34,6.9244]
[1749168284909,6.96959142,144.36,144.31,6.926]
[1749168285105,4.6339,144.35,144.29,47.28]
[1749168285310,6.9246,144.34,144.3,6.9262]
[1749168285507,9.2536,144.34,144.3,6.9262]
[1749168287311,2.329,144.34,144.31,6.926]
[1749168287511,2.37603483,144.34,144.29,47.28]
[1749168288206,9.30073483,144.34,144.3,6.9262]
[1749168288608,9.30073483,144.34,144.31,6.9259]
[1749168288809,2.37603483,144.34,144.29,47.28]
[1749168289119,2.37603483,144.34,144.32,6.9253]
[1749168290414,2.37603483,144.34,144.31,6.9259]
[1749168290913,2.37603483,144.34,144.33,6.9251]
[1749168291214,0.04703483,144.34,144.33,6.9251]
[1749168291413,3.483e-05,144.34,144.33,54.2251]
[1749168301015,3.483e-05,144.34,144.26,45.84]
[1749168301810,3.483e-05,144.34,144.26,48.1732]
[1749168302020,3.483e-05,144.34,144.33,6.9251]
[1749168302320,3.483e-05,144.34,144.26,48.1732]
[1749168302521,3.483e-05,144.34,144.32,6.9255]
[1749168302920,3.483e-05,144.34,144.33,6.9251]
[1749168303422,3.483e-05,144.34,144.31,6.9258]
[1749168303620,3.483e-05,144.34,144.26,45.84]
[1749168303914,52.05742887,144.33,144.23,45.84]
[1749168304120,0.05287848,144.29,144.23,45.84]
[1749168304529,0.05287848,144.29,144.2,45.84]
[1749168304716,0.05123862,144.26,144.2,45.84]
[1749168305316,0.05123862,144.26,144.24,6.9293]
[1749168306616,0.05123862,144.26,144.23,6.9298]
[1749168307328,0.05123862,144.26,144.2,45.84]
[1749168307722,0.05123862,144.26,144.25,6.9289]
[1749168308221,3.862e-05,144.26,144.25,6.9289]
[1749168311426,3.862e-05,144.26,144.25,52.7689]
[1749168313725,3.862e-05,144.26,144.25,59.7089]
[1749168314122,2.2008,144.39,144.37,6.9232]
[1749168314328,2.2008,144.39,144.33,45.86]
[1749168314627,2.2008,144.39,144.36,6.9236]
[1749168314829,2.2008,144.39,144.33,45.86]
[1749168315024,0.05171333,144.37,144.36,6.9235]
[1749168315633,0.05171333,144.37,144.35,0.04807562]
[1749168316629,0.05171333,144.37,144.36,6.9236]
[1749168317234,2.1866,144.45,144.41,6.921]
[1749168318033,2.1866,144.45,144.42,6.9205]
[1749168318231,2.1866,144.45,144.42,6.96705235]
[1749168318232,2.23786144,144.45,144.42,6.96705235]
[1749168318431,2.23786144,144.45,144.42,0.04655235]
[1749168320337,2.23786144,144.45,144.34,45.84]
[1749168320641,2.1866,144.45,144.34,45.84]
[1749168321029,6.9201,144.44,144.38,6.9222]
[1749168321237,0.04824533,144.42,144.4,0.05015391]
[1749168322735,0.04824533,144.42,144.4,6.97165391]
[1749168322937,0.04824533,144.42,144.4,0.05015391]
[1749168323734,0.04824533,144.42,144.4,6.97185391]
[1749168324339,0.04824533,144.42,144.4,0.05015391]
[1749168324936,0.04824533,144.42,144.4,6.97155391]
[1749168325842,0.04824533,144.42,144.41,6.9212]
[1749168326834,4.533e-05,144.42,144.41,6.9212]
[1749168328544,4.533e-05,144.42,144.41,13.8412]
[1749168328746,8.57031296,144.61,144.41,13.8412]
[1749168328747,53.6613,144.58,144.41,6.92]
[1749168328946,4.2843,144.6,144.42,44.44]
[1749168329337,11.1968,144.6,144.54,6.9146]
[1749168329541,4.2843,144.6,144.54,6.9146]
[1749168329741,4.2843,144.6,144.53,44.44]
[1749168329941,0.04618466,144.58,144.56,0.04480679]
[1749168334447,0.04618466,144.58,144.56,6.95890679]
[1749168334850,0.04618466,144.58,144.57,6.9136]
[1749168335046,44.4,144.66,144.56,0.04480679]
[1749168335347,6.9099,144.65,144.6,6.9121]
[1749168335548,6.9099,144.65,144.59,44.4]
[1749168336137,0.04454815,144.63,144.61,0.04999376]
[1749168336546,6.96454815,144.63,144.55,44.4]
[1749168336744,2.1976,144.62,144.53,44.4]
[1749168336938,2.1976,144.62,144.48,51.0058]
[1749168337144,2.1976,144.62,144.51,6.9164]
[1749168337341,2.1976,144.62,144.48,51.0058]
[1749168337547,0.04436805,144.56,144.54,0.04430424]
[1749168337745,44.4,144.57,144.45,44.4]
[1749168337947,48.8651,144.56,144.43,44.4]
[1749168338161,46.6964,144.55,144.43,44.4]
[1749168338666,0.05039568,144.5,144.48,0.04561947]
[1749168339066,6.96729568,144.5,144.48,0.04561947]
[1749168339464,0.05039568,144.5,144.48,0.04561947]
[1749168343069,6.97039568,144.5,144.4,442.78]
[1749168343268,6.9187,144.47,144.4,442.78]
[1749168343870,6.9187,144.47,144.42,6.9207]
[1749168344071,0.04407488,144.46,144.43,0.02280892]
[1749168344470,4.56447488,144.46,144.43,0.02280892]
[1749168345282,0.04407488,144.46,144.43,0.02280892]
[1749168345875,0.04407488,144.46,144.44,6.9195]
[1749168346467,0.04407488,144.46,144.45,6.9193]
[1749168347375,0.04407488,144.46,144.44,6.9196]
[1749168348076,0.04407488,144.46,144.43,0.02280892]
[1749168348672,0.04407488,144.46,144.43,6.94270892]
[1749168348977,0.04407488,144.46,144.44,6.9198]
[1749168349472,0.04407488,144.46,144.45,6.9193]
[1749168349978,0.04407488,144.46,144.44,6.9197]
[1749168350678,0.04407488,144.46,144.43,0.02280892]
[1749168351775,0.04407488,144.46,144.44,6.9197]
[1749168351977,0.04407488,144.46,144.43,0.02280892]
[1749168352173,0.04407488,144.46,144.45,6.9193]
[1749168353070,0.04407488,144.46,144.43,0.02280892]
[1749168353677,0.04407488,144.46,144.43,6.94290892]
[1749168354273,0.04407488,144.46,144.44,6.9197]
[1749168355180,0.04407488,144.46,144.43,0.02280892]
[1749168355676,0.04407488,144.46,144.45,6.9193]
[1749168360381,0.04407488,144.46,144.44,6.9196]
[1749168360890,0.04407488,144.46,144.45,6.9193]
[1749168361179,0.04407488,144.46,144.43,0.02280892]
[1749168361883,6.9196,144.45,144.43,0.02280892]
[1749168362280,0.04407488,144.46,144.43,0.02280892]
[1749168362483,8.38315775,144.45,144.36,43.42]
[1749168362681,2.2686,144.45,144.36,43.42]
[1749168362882,9.1881,144.45,144.36,43.42]
[1749168363089,2.2686,144.45,144.36,43.42]
[1749168363480,0.0440962,144.42,144.41,6.9212]
[1749168364086,0.0440962,144.42,144.4,6.9216]
[1749168364286,0.0440962,144.42,144.36,43.42]
[1749168364683,0.0440962,144.42,144.41,6.9212]
[1749168366182,0.0440962,144.42,144.36,43.42]
[1749168366885,0.0440962,144.42,144.4,6.9215]
[1749168367286,0.0440962,144.42,144.36,43.42]
[1749168369092,0.0440962,144.42,144.41,6.9212]
[1749168369389,43.42,144.48,144.4,43.42]
[1749168369685,43.42,144.48,144.41,47.9091]
[1749168369986,43.42,144.48,144.45,6.9189]
[1749168370186,43.42,144.48,144.38,43.42]
[1749168370381,0.0507537,144.46,144.43,0.0440962]
[1749168371384,6.9696537,144.46,144.43,0.0440962]